bitfinex/quotes_ETHUSD_20250520
["timestamp","ask_amount","ask_price","bid_price","bid_amount"]
[1747742485507,3.98073325,2512.1,2511.2,4.17373068]
[1747742485686,8.7536,2512.5,2511.3,3.58371337]
[1747742485891,3.98011554,2512.5,2511.6,0.55]
[1747742486103,3.98135816,2511.8,2511.7,8.8575]
[1747742486599,3.98135816,2511.8,2511.7,9.45687354]
[1747742487799,3.98135816,2511.8,2511.7,9.44747354]
[1747742487963,3.98094133,2512.0,2511.8,1.3234]
[1747742487964,3.98112091,2511.9,2511.8,1.3234]
[1747742488164,3.98112091,2511.9,2511.8,9.3234]
[1747742488903,3.98112091,2511.9,2511.8,9.54476031]
[1747742490589,3.98112091,2511.9,2511.8,8.99476031]
[1747742490791,3.98112091,2511.9,2511.8,8.7734]
[1747742491599,3.98112091,2511.9,2511.8,16.2904]
[1747742492001,3.98112091,2511.9,2511.8,7.517]
[1747742492206,3.9813672,2511.7,2511.6,0.7855]
[1747742492504,3.9813672,2511.7,2511.6,8.3015]
[1747742493306,3.9813672,2511.7,2511.6,8.8515]
[1747742495606,3.9813672,2511.7,2511.6,8.3015]
[1747742495988,3.9813672,2511.7,2511.6,7.516]
[1747742501540,3.98168425,2511.5,2511.4,0.47291952]
[1747742501758,5.1761457,2511.5,2511.4,7.98291952]
[1747742501903,3.98168425,2511.5,2511.4,7.98291952]
[1747742503616,3.98168425,2511.5,2511.4,0.47291952]
[1747742503906,3.98168425,2511.5,2511.4,7.98291952]
[1747742504846,4.78665992,2511.2,2511.1,0.1]
[1747742505023,5.66352944,2511.2,2511.1,0.1]
[1747742508502,13.66352944,2511.2,2511.1,0.1]
[1747742509024,3.98327026,2510.5,2510.4,17.189]
[1747742509228,4.74927026,2510.5,2510.4,17.189]
[1747742509429,5.77926845,2510.5,2510.4,17.189]
[1747742512035,6.18323689,2510.5,2510.4,17.189]
[1747742518042,5.77926845,2510.5,2510.4,17.189]
[1747742518710,5.77926845,2510.5,2510.4,24.703]
[1747742519217,4.81254631,2510.2,2510.1,0.1]
[1747742522257,13.36254631,2510.2,2510.1,0.1]
[1747742522439,12.81254631,2510.2,2510.1,0.1]
[1747742524839,13.36254631,2510.2,2510.1,0.1]
[1747742526354,4.79331633,2509.4,2509.3,7.516]
[1747742526869,3.98517514,2509.3,2509.2,17.198]
[1747742529876,11.98517514,2509.3,2509.2,17.198]
[1747742530036,11.98517514,2509.3,2508.2,7.513]
[1747742530037,13.32923397,2509.2,2508.2,7.513]
[1747742530227,12.77923397,2509.2,2508.2,8.3188]
[1747742530471,15.23276515,2509.2,2508.2,8.3188]
[1747742530932,7.23276515,2509.2,2508.7,8.2925]
[1747742531255,7.23276515,2509.2,2508.7,7.513]
[1747742531429,7.639684,2509.2,2508.5,0.7795]
[1747742531630,7.639684,2509.2,2508.9,7.514]
[1747742532332,7.639684,2509.2,2508.8,7.514]
[1747742532958,7.53181358,2509.2,2508.8,7.514]
[1747742535372,6.33099473,2509.2,2508.8,7.514]
[1747742535545,3.87746355,2509.2,2509.0,0.7841]
[1747742537748,3.87746355,2509.2,2509.1,7.615]
[1747742537987,3.87746355,2509.2,2509.1,0.1]
[1747742538172,3.87746355,2509.2,2509.1,7.615]
[1747742539147,5.85232905,2509.2,2509.1,0.1]
[1747742539359,3.87746355,2509.2,2509.1,0.1]
[1747742539686,3.87746355,2509.2,2509.1,0.9301]
[1747742540151,3.87746355,2509.2,2509.1,8.4451]
[1747742540688,3.87746355,2509.2,2509.1,7.615]
[1747742541088,3.87746355,2509.2,2509.1,0.1]
[1747742541284,5.06222905,2509.2,2509.1,0.1]
[1747742541581,5.06222905,2509.2,2509.1,7.615]
[1747742541813,5.45733325,2509.2,2509.1,7.615]
[1747742543397,5.45733325,2509.2,2509.1,0.1]
[1747742546816,3.87746355,2509.2,2509.1,0.9107]
[1747742548304,3.87746355,2509.2,2509.1,0.1]
[1747742555426,3.87746355,2509.2,2509.1,7.615]
[1747742556497,3.87746355,2509.2,2509.1,8.3898]
[1747742557110,5.06222905,2509.2,2509.1,0.1]
[1747742557512,5.06222905,2509.2,2509.1,7.615]
[1747742558937,5.46592025,2509.2,2509.1,0.1]
[1747742559105,5.46592025,2509.2,2509.1,7.615]
[1747742571884,5.46592025,2509.2,2509.1,0.1]
[1747742572097,5.46592025,2509.2,2509.1,7.625]
[1747742574185,13.46592025,2509.2,2509.1,7.625]
[1747742574687,13.46592025,2509.2,2509.1,0.1]
[1747742574889,14.24012025,2509.2,2509.1,0.1]
[1747742575387,24.90012025,2509.2,2509.1,0.1]
[1747742578086,25.92238007,2509.2,2509.1,0.1]
[1747742578997,26.47238007,2509.2,2509.1,0.1]
[1747742583330,25.92238007,2509.2,2509.1,0.1]
[1747742583497,23.57592025,2509.2,2509.1,0.1]
[1747742584289,25.14818007,2509.2,2509.1,0.1]
[1747742586123,25.14818007,2509.2,2507.2,4.21465569]
[1747742586124,5.32732289,2508.2,2507.2,0.62506847]
[1747742586394,3.98803589,2507.5,2507.2,0.62506847]
[1747742586761,3.98803589,2507.5,2507.4,1.28510135]
[1747742586972,4.38018961,2507.5,2507.4,0.8163]
[1747742587176,3.98851308,2507.2,2507.1,0.1]
[1747742587673,3.98851308,2507.2,2507.1,7.626]
[1747742587871,3.98851308,2507.2,2507.1,0.1]
[1747742588077,3.98851308,2507.2,2507.1,7.626]
[1747742588462,3.98851308,2507.2,2507.1,7.627]
[1747742590298,4.78620225,2507.2,2507.1,7.627]
[1747742590515,3.98851308,2507.2,2507.1,7.627]
[1747742590926,3.98851308,2507.2,2507.1,8.4195]
[1747742593738,4.738,2507.2,2506.1,0.1]
[1747742593895,8.07459353,2506.2,2506.1,0.1]
[1747742594230,6.00586115,2506.2,2506.1,0.1]
[1747742594447,5.19656115,2506.2,2506.1,0.1]
[1747742594719,5.59770282,2506.2,2506.1,0.1]
[1747742595277,4.39124621,2506.2,2506.1,0.1]
[1747742598304,12.94124621,2506.2,2506.1,0.1]
[1747742598503,12.39124621,2506.2,2506.1,0.1]
[1747742603935,12.39124621,2506.2,2505.1,0.1]
[1747742603936,4.73828848,2505.2,2505.1,0.1]
[1747742604094,3.99281293,2504.5,2504.4,0.02774147]
[1747742604294,11.99281293,2504.5,2504.4,0.02774147]
[1747742604921,3.99281293,2504.5,2504.4,0.02774147]
[1747742605121,3.99281293,2504.5,2504.4,0.80874147]
[1747742605631,3.99281293,2504.5,2504.4,9.36174147]
[1747742611002,3.99281293,2504.5,2504.4,8.80874147]
[1747742611202,4.3942067,2505.5,2504.6,1.3675]
[1747742611432,3.99121931,2505.5,2504.7,0.8175]
[1747742611956,3.99233471,2504.8,2504.7,0.8175]
[1747742612740,3.99233471,2504.8,2504.7,1.3037]
[1747742614253,8.0,2506.3,2504.9,0.7749]
[1747742614462,3.99212684,2505.0,2504.9,0.7749]
[1747742614670,3.99212684,2505.0,2504.9,17.3309]
[1747742615529,3.99169726,2505.2,2505.1,0.758]
[1747742615727,3.99169726,2505.2,2505.1,25.99]
[1747742616109,3.99144659,2505.4,2505.1,25.99]
[1747742616362,3.99169726,2505.2,2505.1,26.54]
[1747742620556,3.99169726,2505.2,2505.1,32.523]
[1747742621719,3.99039239,2506.1,2505.3,0.792]
[1747742621938,3.99106002,2505.6,2505.5,8.792]
[1747742623059,3.99106002,2505.6,2505.5,0.792]
[1747742623243,3.99106002,2505.6,2505.5,17.347]
[1747742624061,3.99106002,2505.6,2505.5,8.792]
[1747742624360,3.99106002,2505.6,2505.5,17.346]
[1747742625161,3.99106002,2505.6,2505.5,8.792]
[1747742625362,3.99106002,2505.6,2505.5,17.346]
[1747742626631,3.99106002,2505.6,2505.5,8.792]
[1747742626830,3.99106002,2505.6,2505.5,8.554]
[1747742636077,3.99137862,2505.4,2505.3,0.8054]
[1747742636239,3.99137862,2505.4,2505.3,23.0834]
[1747742640843,3.99137862,2505.4,2505.3,23.3055082]
[1747742641473,3.99137862,2505.4,2505.3,17.3235082]
[1747742641668,3.99137862,2505.4,2505.3,23.3055082]
[1747742643891,3.99137862,2505.4,2505.3,23.68537531]
[1747742645390,3.99137862,2505.4,2505.3,15.68537531]
[1747742645593,3.99137862,2505.4,2505.3,9.70337531]
[1747742645797,3.99137862,2505.4,2505.3,8.89834994]
[1747742648905,5.18874832,2505.4,2505.3,0.60234994]
[1747742649100,5.18874832,2505.4,2505.3,8.89834994]
[1747742649506,5.98614832,2505.4,2505.3,8.89834994]
[1747742649701,5.98614832,2505.4,2505.3,8.51848283]
[1747742649917,5.98614832,2505.4,2505.3,8.296]
[1747742651921,3.99137862,2505.4,2505.3,8.296]
[1747742655773,3.99058499,2505.9,2505.3,9.0667]
[1747742655926,3.99137862,2505.4,2505.3,9.0667]
[1747742656118,3.99137862,2505.4,2505.3,9.28896845]
[1747742656319,3.99137862,2505.4,2505.3,15.27196845]
[1747742656732,3.99137862,2505.4,2505.3,15.65160731]
[1747742659252,3.99137862,2505.4,2505.3,8.89790731]
[1747742659463,5.60574209,2505.4,2505.3,0.60190731]
[1747742659622,13.60574209,2505.4,2505.3,0.60190731]
[1747742659822,13.60574209,2505.4,2505.3,0.37963886]
[1747742660823,3.99169726,2505.2,2505.1,8.296]
[1747742661056,6.95059831,2505.2,2505.1,8.296]
[1747742661251,14.95059831,2505.2,2505.1,8.296]
[1747742663858,7.76319831,2505.2,2505.1,8.296]
[1747742664067,12.80429726,2505.2,2505.1,8.296]
[1747742664957,4.80429726,2505.2,2505.1,8.296]
[1747742666478,3.99169726,2505.2,2505.1,8.296]
[1747742666664,3.99169726,2505.2,2505.1,16.296]
[1747742671378,3.99169726,2505.2,2505.1,33.529]
[1747742671885,3.99169726,2505.2,2505.1,34.57333194]
[1747742676174,3.99169726,2505.2,2505.1,35.50274804]
[1747742678590,3.99169726,2505.2,2505.1,40.93574804]
[1747742679111,3.99169726,2505.2,2505.1,34.13034804]
[1747742679272,3.99169726,2505.2,2505.1,40.11334804]
[1747742679470,3.99169726,2505.2,2505.1,34.13034804]
[1747742679685,3.99169726,2505.2,2505.1,40.11334804]
[1747742679887,3.99169726,2505.2,2505.1,39.73393194]
[1747742689728,3.99169726,2505.2,2505.1,33.75093194]
[1747742689891,3.99169726,2505.2,2505.1,39.73393194]
[1747742693494,3.99169726,2505.2,2505.1,40.11362978]
[1747742700958,3.99169726,2505.2,2505.1,25.83462978]
[1747742701128,3.99169726,2505.2,2505.1,39.77862978]
[1747742701674,0.7668,2505.7,2505.1,39.77862978]
[1747742701831,3.99134129,2505.5,2505.3,0.7956]
[1747742702159,3.99153793,2505.3,2505.2,8.0]
[1747742702361,3.99153793,2505.3,2505.2,8.22193194]
[1747742702921,3.99153793,2505.3,2505.2,14.20493194]
[1747742703458,3.99153793,2505.3,2505.2,14.75493194]
[1747742703994,3.99153793,2505.3,2505.2,15.60997899]
[1747742705380,3.99153793,2505.3,2505.2,15.13495285]
[1747742706882,3.99153793,2505.3,2505.2,15.60997899]
[1747742707602,0.7668,2505.9,2505.3,0.55]
[1747742707798,3.99137862,2505.4,2505.3,0.55]
[1747742708103,3.99137862,2505.4,2505.3,0.77193194]
[1747742708391,3.99137862,2505.4,2505.3,1.15195285]
[1747742710199,3.99137862,2505.4,2505.3,14.58395285]
[1747742710909,3.99137862,2505.4,2505.3,8.60195285]
[1747742711197,3.99137862,2505.4,2505.3,14.58395285]
[1747742712290,3.99137862,2505.4,2505.3,8.60195285]
[1747742712482,3.99137862,2505.4,2505.3,22.54495285]
[1747742714498,3.99137862,2505.4,2505.3,8.60195285]
[1747742714704,3.99137862,2505.4,2505.3,22.54395285]
[1747742716204,4.78657862,2505.4,2505.3,8.56195285]
[1747742716590,4.78657862,2505.4,2505.3,16.18193194]
[1747742716985,4.78657862,2505.4,2505.3,15.96]
[1747742719506,4.78657862,2505.4,2505.3,8.0]
[1747742720006,4.78657862,2505.4,2505.3,15.961]
[1747742721615,3.99169726,2505.2,2505.1,17.233]
[1747742721758,3.99169726,2505.2,2505.1,25.194]
[1747742721965,4.79299726,2505.2,2505.1,25.194]
[1747742722412,12.79299726,2505.2,2505.1,25.194]
[1747742722603,14.95837085,2505.2,2505.1,25.194]
[1747742722773,6.95837085,2505.2,2505.1,25.194]
[1747742723915,7.36334781,2505.2,2505.1,25.194]
[1747742726162,7.36334781,2505.2,2505.1,17.233]
[1747742726510,7.36334781,2505.2,2505.1,25.054]
[1747742729321,8.26334781,2505.2,2505.1,17.233]
[1747742729468,8.26334781,2505.2,2505.1,25.054]
[1747742730713,7.36334781,2505.2,2505.1,25.054]
[1747742731065,6.95837085,2505.2,2505.1,25.054]
[1747742733000,4.79299726,2505.2,2505.1,25.054]
[1747742733301,3.99169726,2505.2,2505.1,25.054]
[1747742733863,4.79889726,2505.2,2505.1,25.055]
[1747742734464,4.79889726,2505.2,2505.1,17.233]
[1747742734681,4.79889726,2505.2,2505.1,25.055]
[1747742734883,6.0770825,2505.2,2505.1,25.055]
[1747742739716,5.2698825,2505.2,2505.1,25.055]
[1747742739902,3.99169726,2505.2,2505.1,25.055]
[1747742752748,3.99169726,2505.2,2505.1,34.3805]
[1747742753859,3.9912206,2505.5,2505.3,1.3523]
[1747742753860,3.99144365,2505.4,2505.3,1.3523]
[1747742754759,3.99153793,2505.3,2505.2,14.534]
[1747742755061,3.99153793,2505.3,2505.2,21.805]
[1747742755867,3.99153793,2505.3,2505.2,22.18480951]
[1747742757760,3.99153793,2505.3,2505.2,8.37980951]
[1747742757960,3.99153793,2505.3,2505.2,0.37980951]
[1747742758147,3.99153793,2505.3,2505.2,14.07780951]
[1747742759235,3.99153793,2505.3,2505.2,8.09480951]
[1747742759434,3.99153793,2505.3,2505.2,7.715]
[1747742760594,3.99153793,2505.3,2505.2,8.4993]
[1747742762804,3.9914571,2505.4,2505.2,9.0493]
[1747742763011,3.99105263,2505.7,2505.4,0.8228]
[1747742763217,3.99062466,2505.9,2505.5,0.58990675]
[1747742763357,3.99051208,2506.0,2505.9,0.55]
[1747742763559,3.99051208,2506.0,2505.9,8.265]
[1747742764206,3.99051208,2506.0,2505.9,8.64387044]
[1747742764569,3.99051208,2506.0,2505.9,0.92887044]
[1747742764770,3.99051208,2506.0,2505.9,8.64387044]
[1747742765470,3.99051208,2506.0,2505.9,8.265]
[1747742766215,3.99035031,2506.1,2505.9,8.265]
[1747742766503,3.99042298,2506.0,2505.9,8.265]
[1747742767397,3.99042298,2506.0,2505.9,0.55]
[1747742767563,3.99058222,2505.9,2505.8,0.55]
[1747742767762,3.99058222,2505.9,2505.8,8.264]
[1747742768295,3.99090074,2505.7,2505.6,1.3212]
[1747742768484,3.99090074,2505.7,2505.6,9.0342]
[1747742769697,3.99090074,2505.7,2505.6,1.3212]
[1747742769863,4.8159628,2506.3,2505.2,0.8755301]
[1747742769864,3.99024945,2506.2,2505.2,0.8755301]
[1747742770060,3.99090074,2505.7,2505.6,8.263]
[1747742770260,3.99090074,2505.7,2505.6,9.0625]
[1747742775984,3.99090074,2505.7,2505.6,8.263]
[1747742777500,3.99085623,2505.8,2505.7,1.3259]
[1747742777871,3.99085623,2505.8,2505.7,1.54760148]
[1747742779730,3.99085623,2505.8,2505.7,1.92607982]
[1747742780128,3.9906185,2505.9,2505.7,1.92607982]
[1747742780304,3.99058635,2505.9,2505.7,1.92607982]
[1747742780504,3.99074147,2505.8,2505.7,1.70437834]
[1747742781225,3.99074147,2505.8,2505.7,1.92623804]
[1747742782646,3.99074147,2505.8,2505.7,9.63923804]
[1747742784229,3.99074147,2505.8,2505.7,1.92623804]
[1747742784399,3.99074147,2505.8,2505.7,9.63923804]
[1747742784801,3.99067695,2505.9,2505.7,9.63923804]
[1747742785005,3.99067695,2505.9,2505.8,0.2218597]
[1747742785305,3.9899187,2506.4,2505.9,1.3368]
[1747742785306,3.99050575,2506.0,2505.9,1.3368]
[1747742785735,3.99050575,2506.0,2505.9,1.5586597]
[1747742786860,3.99106002,2505.6,2505.5,0.47502614]
[1747742787003,4.76797862,2505.4,2505.3,0.62506847]
[1747742787199,4.76797862,2505.4,2504.7,1.25013694]
[1747742787200,3.99233471,2504.8,2504.7,1.25013694]
[1747742787413,3.99265351,2504.6,2504.5,7.713]
[1747742787798,5.51081866,2504.6,2504.5,7.713]
[1747742788004,3.99281293,2504.5,2504.1,0.1]
[1747742788203,5.51097808,2504.5,2504.4,7.79874147]
[1747742789215,5.51097808,2504.5,2504.4,0.02774147]
[1747742789417,5.51097808,2504.5,2504.4,7.80074147]
[1747742790219,3.99281293,2504.5,2504.4,7.80074147]
[1747742791734,3.99281293,2504.5,2504.4,8.35074147]
[1747742793041,3.99281293,2504.5,2504.4,0.57774147]
[1747742793249,3.99281293,2504.5,2504.4,7.80174147]
[1747742793952,4.80231293,2504.5,2504.4,0.02774147]
[1747742794145,4.80438654,2503.2,2503.1,0.1]
[1747742795240,4.80438654,2503.2,2503.1,8.217]
[1747742796240,5.20200592,2503.2,2503.1,8.217]
[1747742796425,14.77787875,2503.2,2503.1,0.1]
[1747742796607,6.12168172,2503.2,2503.1,0.1]
[1747742797210,5.72406234,2503.2,2503.1,0.1]
[1747742797414,4.80438654,2503.2,2503.1,0.1]
[1747742799509,4.80438654,2503.2,2503.1,8.221]
[1747742800082,5.20468515,2503.2,2503.1,8.221]
[1747742801413,5.20468515,2503.2,2503.1,0.1]
[1747742801617,3.99808092,2501.2,2500.7,8.737]
[1747742803925,3.99808092,2501.2,2500.8,8.0]
[1747742805422,3.99808092,2501.2,2500.9,0.789]
[1747742805623,3.99800659,2501.3,2500.9,0.789]
[1747742805825,3.99800659,2501.3,2501.2,25.989]
[1747742806356,3.99800659,2501.3,2501.2,17.249]
[1747742806524,3.99800659,2501.3,2501.2,25.989]
[1747742806930,3.99800659,2501.3,2501.2,17.249]
[1747742807162,3.99800659,2501.3,2501.2,25.99]
[1747742809658,3.99800659,2501.3,2501.2,17.249]
[1747742809848,3.99800659,2501.3,2501.2,25.99]
[1747742810560,3.99782902,2501.4,2501.3,8.0]
[1747742810737,3.9974466,2501.6,2501.4,0.55]
[1747742812067,3.99729609,2501.7,2501.4,0.55]
[1747742812286,3.99808092,2501.2,2501.1,0.1]
[1747742812469,4.81008092,2501.2,2501.1,0.1]
[1747742812674,3.99808092,2501.2,2501.1,0.1]
[1747742813093,3.99808092,2501.2,2501.1,17.354]
[1747742813380,3.99808092,2501.2,2501.1,25.354]
[1747742813586,3.99808092,2501.2,2501.1,34.385]
[1747742814686,3.99798878,2501.3,2501.2,0.55]
[1747742817565,3.99798878,2501.3,2501.2,6.541]
[1747742817870,3.99798878,2501.3,2501.2,0.55]
[1747742818082,3.99798878,2501.3,2501.1,31.345]
[1747742818083,3.99808092,2501.2,2501.1,31.345]
[1747742818283,3.99808092,2501.2,2501.1,40.377]
[1747742819467,3.99798878,2501.3,2501.1,40.377]
[1747742819669,3.99808092,2501.2,2501.1,40.927]
[1747742820299,3.99904023,2500.6,2500.5,9.032]
[1747742820596,3.99968002,2500.2,2500.0,17.88331662]
[1747742820899,3.99968002,2500.2,2500.1,9.132]
[1747742822975,3.99968002,2500.2,2500.1,17.132]
[1747742823906,3.99968002,2500.2,2500.1,8.1]
[1747742824099,3.99968002,2500.2,2500.1,17.134]
[1747742825399,3.99968002,2500.2,2500.1,17.135]
[1747742828371,3.99956543,2500.3,2500.2,8.0]
[1747742829102,3.99956543,2500.3,2500.2,17.035]
[1747742829506,3.99956543,2500.3,2500.2,8.0]
[1747742829705,3.99956543,2500.3,2500.2,17.035]
[1747742832384,4.80616543,2500.3,2500.2,9.035]
[1747742833170,3.99956543,2500.3,2500.2,9.035]
[1747742833801,3.99968002,2500.2,2500.1,0.1]
[1747742834009,3.99968002,2500.2,2500.1,9.136]
[1747742834412,3.99968002,2500.2,2500.1,17.136]
[1747742834809,3.99958048,2500.3,2500.2,8.0]
[1747742835012,3.99944489,2500.4,2500.2,8.0]
[1747742835225,0.795,2501.1,2500.2,8.55]
[1747742835381,3.9987204,2500.8,2500.2,8.55]
[1747742835581,3.99850684,2501.0,2500.2,8.55]
[1747742835780,3.99952005,2500.3,2500.2,8.0]
[1747742836026,3.99942596,2500.4,2500.2,17.037]
[1747742836382,3.99942596,2500.4,2500.3,0.55]
[1747742836933,3.99942596,2500.4,2500.3,0.37922238]
[1747742837210,3.99942596,2500.4,2500.3,15.41022238]
[1747742837614,3.99942596,2500.4,2500.3,0.37922238]
[1747742837915,3.99942596,2500.4,2500.3,9.41522238]
[1747742839115,3.99868069,2500.9,2500.4,8.55]
[1747742839417,3.99920015,2500.5,2500.4,0.55]
[1747742839585,3.99920015,2500.5,2500.3,9.41522238]
[1747742840185,3.99920015,2500.5,2500.4,0.37922238]
[1747742841392,3.99920015,2500.5,2500.4,15.40922238]
[1747742842115,3.99920015,2500.5,2500.4,15.03]
[1747742842325,3.99920015,2500.5,2500.4,23.03]
[1747742842482,3.99910287,2500.6,2500.4,23.03]
[1747742842886,3.99721325,2501.8,2500.5,8.0]
[1747742843226,3.9979505,2501.3,2500.6,0.7974]
[1747742843722,3.99857449,2500.9,2500.6,0.7974]
[1747742844091,3.99835053,2501.1,2500.8,8.0]
[1747742844092,3.99824894,2501.1,2500.8,8.0]
[1747742844293,3.99824894,2501.1,2501.0,8.0]
[1747742844492,3.99824894,2501.1,2501.0,26.0718]
[1747742844988,3.99824077,2501.1,2501.0,26.0718]
[1747742845189,3.99816251,2501.2,2501.0,26.0718]
[1747742845525,3.99816265,2501.2,2501.0,26.0718]
[1747742846024,3.99744679,2501.6,2501.0,26.0718]
[1747742846405,3.99817663,2501.2,2501.0,26.0718]
[1747742847529,3.99824077,2501.1,2501.0,26.0718]
[1747742847689,3.99824077,2501.1,2501.0,32.0648]
[1747742850598,0.831,2501.8,2501.0,32.0648]
[1747742850799,3.99805417,2501.3,2501.0,32.0648]
[1747742851423,3.99805417,2501.3,2501.1,0.37977276]
[1747742851828,0.831,2501.8,2501.1,0.37977276]
[1747742852029,3.9977162,2501.5,2501.1,0.37977276]
[1747742852232,3.99750562,2501.6,2501.2,8.0]
[1747742852423,3.99750562,2501.6,2501.2,0.55]
[1747742852612,3.99736951,2501.7,2501.2,3.74839213]
[1747742852816,0.753,2502.1,2501.2,0.55]
[1747742853002,3.99735222,2501.7,2501.2,3.74834684]
[1747742853198,3.99735222,2501.7,2501.2,11.74834684]
[1747742853404,3.99663589,2502.2,2501.8,8.0]
[1747742853630,3.99663059,2502.2,2502.0,8.0]
[1747742853835,3.99605341,2502.5,2502.1,17.26]
[1747742854035,3.99593741,2502.6,2502.2,8.0]
[1747742854241,3.99584462,2502.6,2502.2,8.0]
[1747742854626,3.99569196,2502.7,2502.4,8.0]
[1747742854816,3.99552501,2502.8,2502.5,8.885]
[1747742855014,0.1,2502.9,2502.6,8.0]
[1747742855217,3.99567957,2502.8,2502.6,8.0]
[1747742856145,3.99568466,2502.7,2502.6,8.55]
[1747742857231,3.99568466,2502.7,2502.6,8.0]
[1747742857559,3.99568466,2502.7,2502.6,13.992]
[1747742858871,3.99568466,2502.7,2502.6,14.542]
[1747742859616,3.99554376,2502.8,2502.6,14.873]
[1747742859823,3.99554376,2502.8,2502.7,8.0]
[1747742860315,3.99648309,2502.2,2502.1,17.26]
[1747742860520,0.7666,2502.7,2502.1,26.142]
[1747742860719,3.99641593,2502.3,2502.2,8.55]
[1747742861228,3.99622405,2502.4,2502.2,8.55]
[1747742861449,3.99632338,2502.3,2502.2,8.55]
[1747742863237,3.99626855,2502.4,2502.3,0.55]
[1747742863561,3.99611986,2502.5,2502.3,0.55]
[1747742863764,4.91396947,2502.9,2502.3,0.55]
[1747742863952,3.9961591,2502.5,2502.3,0.55]
[1747742865068,3.99552501,2502.8,2502.1,26.142]
[1747742865235,3.99624608,2502.4,2502.2,5.99]
[1747742865442,3.99599181,2502.6,2502.3,8.55]
[1747742865643,3.99608024,2502.5,2502.3,8.55]
[1747742865947,3.99608024,2502.5,2502.4,0.55]
[1747742866362,3.99599693,2502.6,2502.4,0.55]
[1747742866742,3.99593028,2502.6,2502.4,0.55]
[1747742866940,3.99600399,2502.5,2502.4,0.55]
[1747742867565,3.99573407,2502.7,2502.5,0.55]
[1747742867566,3.99596873,2502.6,2502.5,0.55]
[1747742867769,3.99596873,2502.6,2502.5,17.43]
[1747742867971,3.99596873,2502.6,2502.5,16.88]
[1747742868669,3.99596873,2502.6,2502.5,8.0]
[1747742868833,3.99596873,2502.6,2502.5,16.88]
[1747742870870,3.99596873,2502.6,2502.5,8.0]
[1747742871165,3.99596873,2502.6,2502.5,16.595]
[1747742873017,3.99596873,2502.6,2502.5,17.84182999]
[1747742873230,3.99596873,2502.6,2502.5,17.145]
[1747742873628,3.99559468,2502.8,2502.6,8.0]
[1747742873913,0.1,2502.9,2502.7,0.7793]
[1747742874110,0.1,2502.9,2502.8,0.55]
[1747742874280,0.1,2502.9,2502.8,23.710404]
[1747742874614,3.99482674,2503.3,2502.8,23.710404]
[1747742874786,3.99490552,2503.2,2502.8,8.55]
[1747742874991,3.99490552,2503.2,2502.8,0.55]
[1747742875394,3.99490552,2503.2,2502.9,0.55]
[1747742875592,3.99490552,2503.2,2503.1,8.55]
[1747742875912,3.99490552,2503.2,2503.1,25.8]
[1747742876211,3.99488654,2503.2,2503.1,25.8]
[1747742876427,0.7703,2503.7,2503.1,25.8]
[1747742876630,3.99473534,2503.3,2503.1,25.8]
[1747742877141,3.99457116,2503.4,2503.3,0.55]
[1747742877451,3.99488654,2503.2,2503.1,25.8]
[1747742878456,3.99483068,2503.3,2503.2,0.55]
[1747742878615,4.87027477,2503.9,2503.2,0.55]
[1747742878816,3.99456123,2503.5,2503.2,0.55]
[1747742879412,3.99432724,2503.6,2503.2,0.55]
[1747742880051,3.99442018,2503.5,2503.2,0.55]
[1747742880401,3.99434056,2503.6,2503.2,0.55]
[1747742880603,0.1,2503.9,2503.4,0.55]
[1747742880806,0.1,2503.9,2503.7,0.55]
[1747742881117,4.09377717,2503.9,2503.7,0.55]
[1747742881315,3.99392922,2503.8,2503.7,0.55]
[1747742883149,0.1,2503.9,2503.7,0.55]
[1747742883841,4.09383365,2503.9,2503.8,1.3072]
[1747742889034,3.99408874,2503.7,2503.6,8.0]
[1747742889232,3.99408874,2503.7,2503.6,22.576]
[1747742889637,3.99408874,2503.7,2503.6,23.126]
[1747742889839,3.99408874,2503.7,2503.6,8.55]
[1747742890035,3.99472696,2503.3,2503.2,6.47496026]
[1747742890238,4.79292696,2503.3,2503.2,23.05096026]
[1747742890538,4.79292696,2503.3,2503.2,23.60096026]
[1747742890722,4.79292696,2503.3,2503.2,23.126]
[1747742890923,4.79292696,2503.3,2503.2,8.59]
[1747742891235,4.79292696,2503.3,2503.2,16.59]
[1747742891435,3.99472696,2503.3,2503.2,16.59]
[1747742893557,3.9945581,2503.5,2503.3,8.0]
[1747742893756,3.99472696,2503.3,2503.2,16.59]
[1747742893963,3.99472696,2503.3,2503.2,17.14]
[1747742894964,3.99464441,2503.4,2503.2,17.14]
[1747742895273,3.99449277,2503.5,2503.3,0.55]
[1747742895563,3.99449277,2503.5,2503.4,0.55]
[1747742897559,3.99449277,2503.5,2503.4,14.537]
[1747742901578,3.99427395,2503.6,2503.5,8.55]
[1747742901759,3.99427395,2503.6,2503.5,1.3473]
[1747742902572,3.99427395,2503.6,2503.5,0.55]
[1747742903270,3.99440782,2503.5,2503.4,5.987]
[1747742903479,3.99440782,2503.5,2503.4,6.537]
[1747742903776,3.99440782,2503.5,2503.4,0.55]
[1747742903961,3.99440782,2503.5,2503.4,8.326]
[1747742904841,3.99440782,2503.5,2503.4,16.326]
[1747742907643,3.99440782,2503.5,2503.4,8.0]
[1747742907976,3.99440782,2503.5,2503.4,16.326]
[1747742911862,3.99440782,2503.5,2503.4,16.876]
[1747742912460,3.99440782,2503.5,2503.4,8.55]
[1747742912665,3.99440782,2503.5,2503.4,23.0848773]
[1747742913369,3.99440782,2503.5,2503.4,22.863]
[1747742914586,3.99440782,2503.5,2503.4,23.08496993]
[1747742916090,3.99424828,2503.6,2503.5,8.55]
[1747742916660,3.99424828,2503.6,2503.5,8.77196993]
[1747742916855,3.99424828,2503.6,2503.5,9.15105134]
[1747742918054,3.99424828,2503.6,2503.5,8.60105134]
[1747742918271,3.99424828,2503.6,2503.5,9.15105134]
[1747742918894,3.99424828,2503.6,2503.5,26.39305134]
[1747742919583,3.99424828,2503.6,2503.5,40.70605134]
[1747742925172,3.99424828,2503.6,2503.5,25.84305134]